bitfinex-derivatives/quotes_BTCF0:USTF0_20241226
["timestamp","ask_amount","ask_price","bid_price","bid_amount"]
[1735227183977,0.3038,95927.0,95890.0,0.46313091]
[1735227184183,0.3038,95927.0,95906.0,0.052188]
[1735227184484,0.3038,95927.0,95900.0,0.16313091]
[1735227184681,0.3048,95927.0,95918.0,0.052182]
[1735227184870,0.3048,95927.0,95876.0,0.1042]
[1735227185081,0.3048,95927.0,95902.0,0.05219]
[1735227185273,0.3048,95927.0,95916.0,0.052183]
[1735227185479,0.3048,95927.0,95890.0,0.16313091]
[1735227185685,1.2048,95927.0,95908.0,0.052187]
[1735227185981,1.2048,95927.0,95881.0,0.052202]
[1735227185982,1.2038,95927.0,95881.0,0.052202]
[1735227186180,0.08708183,95900.0,95895.0,0.052194]
[1735227186481,0.00011225,95899.0,95895.0,0.052194]
[1735227188118,0.00111225,95899.0,95895.0,0.052194]
[1735227188585,0.08708183,95910.0,95895.0,0.052194]
[1735227188775,0.002,95899.0,95895.0,0.052194]
[1735227189279,0.902,95899.0,95857.0,0.052215]
[1735227189484,0.08708183,95890.0,95877.0,0.052204]
[1735227189700,0.61132182,95898.0,95870.0,0.08708183]
[1735227189880,0.001,95899.0,95888.0,0.08708183]
[1735227190078,0.08708183,95920.0,95903.0,0.05219]
[1735227190281,0.15575013,95919.0,95889.0,0.0173]
[1735227190479,0.08708183,95910.0,95902.0,0.05219]
[1735227190680,0.08708183,95910.0,95895.0,0.001]
[1735227190886,0.00011003,95909.0,95903.0,0.05219]
[1735227191182,0.00011003,95909.0,95862.0,0.1042]
[1735227191375,0.00011003,95909.0,95880.0,0.08708183]
[1735227191577,0.06746371,95910.0,95903.0,0.05219]
[1735227191875,0.08033812,95913.0,95863.0,0.4042]
[1735227192076,0.001,95909.0,95880.0,0.08708183]
[1735227192283,0.001,95909.0,95890.0,0.08708183]
[1735227192577,0.00013251,95908.0,95891.0,0.0747]
[1735227192785,0.00013251,95908.0,95873.0,0.45572543]
[1735227192985,0.00013251,95908.0,95905.0,0.052189]
[1735227193283,0.00013251,95908.0,95903.0,0.001]
[1735227193483,1.50013251,95908.0,95903.0,0.001]
[1735227193687,1.50013251,95908.0,95876.0,0.052204]
[1735227193981,0.08708183,95886.0,95851.0,0.15581132]
[1735227194186,0.08708183,95890.0,95860.0,0.08708183]
[1735227194387,0.08708183,95890.0,95861.0,0.04041532]
[1735227194589,0.08708183,95890.0,95878.0,0.052203]
[1735227194788,0.08708183,95890.0,95879.0,0.052203]
[1735227194995,0.3314,95889.0,95876.0,0.002]
[1735227195190,0.08708183,95886.0,95876.0,0.002]
[1735227195385,0.3012,95885.0,95876.0,0.002]
[1735227195901,0.00010341,95884.0,95858.0,0.00156417]
[1735227196086,0.08708183,95868.0,95858.0,0.00156417]
[1735227196291,0.01,95864.0,95809.0,0.90678841]
[1735227196487,0.08708183,95846.0,95828.0,0.052231]
[1735227196694,0.08008183,95846.0,95832.0,0.052229]
[1735227196891,0.08708183,95850.0,95832.0,0.052229]
[1735227197092,0.00010525,95849.0,95828.0,0.05195153]
[1735227197291,0.31870525,95849.0,95828.0,0.05195153]
[1735227198289,0.16351596,95846.0,95828.0,0.05195153]
[1735227198492,0.09780808,95847.0,95837.0,0.052226]
[1735227198690,0.07147575,95855.0,95854.0,0.05208248]
[1735227198987,0.05647575,95855.0,95854.0,0.05208248]
[1735227199193,0.16351596,95870.0,95856.0,0.052215]
[1735227199692,0.3186,95872.0,95840.0,0.16351596]
[1735227199894,0.3186,95872.0,95855.0,0.052216]
[1735227200095,0.001,95849.0,95841.0,0.052224]
[1735227200287,0.001,95849.0,95848.0,0.05222]
[1735227200498,7.815e-05,95849.0,95840.0,0.46351596]
[1735227200786,0.3186,95872.0,95859.0,0.052214]
[1735227200992,0.3196,95872.0,95859.0,0.052214]
[1735227201192,0.2776,95872.0,95844.0,0.052222]
[1735227201388,0.2776,95872.0,95840.0,0.51671499]
[1735227201592,0.2766,95872.0,95859.0,0.052214]
[1735227201793,0.001,95849.0,95840.0,0.51671499]
[1735227201994,0.21813,95872.0,95841.0,0.09259177]
[1735227202194,0.21813,95872.0,95866.0,0.05221]
[1735227202397,0.21913,95872.0,95866.0,0.05221]
[1735227203101,0.21913,95872.0,95839.0,0.17831596]
[1735227203102,0.21813,95872.0,95839.0,0.17831596]
[1735227203289,0.21913,95872.0,95843.0,0.052223]
[1735227203491,0.21913,95872.0,95846.0,0.052221]
[1735227203690,0.21913,95872.0,95860.0,0.052214]
[1735227204790,0.21813,95872.0,95860.0,0.052214]
[1735227205190,0.22113,95872.0,95860.0,0.052214]
[1735227205387,0.19832475,95872.0,95869.0,0.052209]
[1735227205660,0.16351596,95910.0,95860.0,0.16351596]
[1735227205793,0.16351596,95910.0,95881.0,0.052202]
[1735227205794,0.44728092,95907.0,95881.0,0.052202]
[1735227205989,1.32666616,95907.0,95881.0,0.052202]
[1735227206296,1.32666616,95907.0,95883.0,0.052201]
[1735227206795,0.3226,95906.0,95895.0,0.052194]
[1735227207095,0.3226,95906.0,95880.0,0.16351596]
[1735227207301,0.3226,95906.0,95901.0,0.052191]
[1735227208001,0.3226,95906.0,95892.0,0.052196]
[1735227208196,0.3316,95906.0,95881.0,0.00156406]
[1735227208397,0.3316,95906.0,95894.0,0.052195]
[1735227208601,0.3316,95906.0,95895.0,0.052194]
[1735227208903,0.3193,95905.0,95901.0,0.001]
[1735227210298,0.3193,95905.0,95901.0,0.0515725]
[1735227210299,0.3203,95905.0,95901.0,0.0515725]
[1735227210502,0.3203,95905.0,95881.0,0.00256407]
[1735227210698,0.15246635,95905.0,95890.0,0.16351596]
[1735227210920,0.30064001,95906.0,95905.0,0.052189]
[1735227211201,0.01,95930.0,95910.0,0.052186]
[1735227211202,0.3043,95924.0,95910.0,0.052186]
[1735227211591,1.18368524,95924.0,95904.0,0.052184]
[1735227211792,0.001,95905.0,95904.0,0.052184]
[1735227211996,0.22187447,95924.0,95890.0,0.16351596]
[1735227212202,0.01156387,95944.0,95921.0,0.052175]
[1735227212401,1.09703531,95942.0,95923.0,0.052174]
[1735227212596,0.87938524,95942.0,95923.0,0.052174]
[1735227213205,0.87938524,95942.0,95925.0,0.052173]
[1735227213805,0.94966361,95951.0,95930.0,0.16351596]
[1735227214001,0.21744642,95958.0,95940.0,0.16351596]
[1735227214205,0.13525668,95958.0,95956.0,0.052156]
[1735227214398,0.17765335,95960.0,95948.0,0.16351596]
[1735227214703,0.30316,95964.0,95948.0,0.16351596]
[1735227214901,0.30316,95964.0,95936.0,0.00156316]
[1735227214902,0.006,95951.0,95936.0,0.00156316]
[1735227215108,0.46231596,95950.0,95936.0,0.00156316]
[1735227215302,0.2988,95950.0,95936.0,0.00156316]
[1735227215500,0.22351974,95950.0,95948.0,0.05216]
[1735227215704,0.27104,95963.0,95940.0,0.16351596]
[1735227215912,0.3002,95964.0,95940.0,0.16351596]
[1735227216202,0.3002,95964.0,95955.0,0.052156]
[1735227216709,0.3002,95964.0,95940.0,0.16351596]
[1735227216710,0.002,95960.0,95940.0,0.21521846]
[1735227216903,0.002,95960.0,95959.0,0.052154]
[1735227217094,0.01,95981.0,95964.0,0.052152]
[1735227217508,0.88938524,95981.0,95964.0,0.052152]
[1735227217719,0.87938524,95981.0,95964.0,0.052152]
[1735227218404,0.88438524,95981.0,95964.0,0.053152]
[1735227218601,0.88438524,95981.0,95966.0,0.05215]
[1735227219108,0.005,95981.0,95972.0,0.052148]
[1735227219307,0.637,95989.0,95970.0,0.16351596]
[1735227219502,0.2541902,95989.0,95985.0,0.05214]
[1735227220116,1e-08,95989.0,95985.0,0.05214]
[1735227220499,1e-08,96000.0,95985.0,0.05214]
[1735227220700,0.87938525,96000.0,95985.0,0.05214]
[1735227221095,0.004,95989.0,95985.0,0.05214]
[1735227221399,0.004,95989.0,95985.0,0.05270461]
[1735227221608,1e-08,96000.0,95995.0,0.052135]
[1735227221907,1e-08,96000.0,95979.0,0.16351596]
[1735227221908,0.00400001,96000.0,95979.0,0.16351596]
[1735227222208,0.3063,96009.0,95990.0,0.16351596]
[1735227222508,0.16351596,96030.0,95990.0,0.16351596]
[1735227222702,0.16351596,96030.0,96014.0,0.052125]
[1735227222703,0.3188,96029.0,96014.0,0.052125]
[1735227222907,0.3188,96029.0,96000.0,0.16351596]
[1735227223123,0.3188,96029.0,96023.0,0.05212]
[1735227223296,0.00156207,96049.0,96023.0,0.05212]
[1735227223609,0.6126,96048.0,96025.0,0.052119]
[1735227223805,0.6126,96048.0,96027.0,0.052117]
[1735227224112,1.49198524,96048.0,96013.0,0.052125]
[1735227224499,1.49198524,96048.0,96026.0,0.052118]
[1735227224704,0.16351596,96040.0,96023.0,0.001]
[1735227225200,1.0429012,96040.0,96023.0,0.05364204]
[1735227225512,0.87938524,96040.0,96027.0,0.052117]
[1735227225711,0.87938524,96040.0,96032.0,0.052115]
[1735227226216,0.004,96040.0,96024.0,0.052119]
[1735227226403,0.004,96040.0,96033.0,0.052114]
[1735227226799,0.004,96040.0,96027.0,0.001]
[1735227227007,0.004,96040.0,96032.0,0.001]
[1735227227506,0.004,96040.0,96033.0,0.001]
[1735227227712,0.6126,96048.0,96033.0,0.001]
[1735227227911,0.006,96040.0,96033.0,0.001]
[1735227228213,0.006,96040.0,96034.0,0.052114]
[1735227228407,0.006,96040.0,96032.0,0.002]
[1735227228607,0.6126,96048.0,96039.0,0.052111]
[1735227228808,1.49198524,96048.0,96039.0,0.052111]
[1735227229239,0.006,96040.0,96039.0,0.052111]
[1735227229812,0.6126,96048.0,96039.0,0.052111]
[1735227230413,0.51065492,96048.0,96039.0,0.052111]
[1735227230714,0.51065492,96048.0,96039.0,0.053111]
[1735227231812,1.39204016,96048.0,96039.0,0.053111]
[1735227232015,1.37075474,96048.0,96039.0,0.05347874]
[1735227232214,1.37075474,96048.0,96044.0,0.052108]
[1735227233110,1.37075474,96048.0,96039.0,0.05347874]
[1735227233307,1.37175474,96048.0,96039.0,0.05347874]
[1735227233516,1.37175474,96048.0,95995.0,0.01564]
[1735227233720,0.16351596,96030.0,95990.0,0.16351596]
[1735227233911,0.16351596,96030.0,96013.0,0.052125]
[1735227234111,0.16351596,96030.0,96004.0,0.0523048]
[1735227234112,1.0429012,96030.0,96004.0,0.0523048]
[1735227234411,1.0429012,96030.0,95997.0,0.052134]
[1735227234412,0.16351596,96020.0,95997.0,0.052134]
[1735227234618,0.3135,96019.0,95997.0,0.052134]
[1735227234916,0.3135,96019.0,96003.0,0.05254334]
[1735227235113,1.19288524,96019.0,96003.0,0.00156205]
[1735227235317,0.3089,96018.0,96003.0,0.00156205]
[1735227235818,1.18828524,96018.0,96003.0,0.00156205]
[1735227236010,1.18828524,96018.0,96004.0,0.007]
[1735227236412,1.18828524,96018.0,96003.0,0.00656205]
[1735227236611,1.18828524,96018.0,96003.0,0.01356205]
[1735227237016,1.18828524,96018.0,96004.0,0.007]
[1735227237017,0.3153,96017.0,96004.0,0.007]
[1735227237208,0.3153,96017.0,96004.0,0.011]
[1735227237410,1.19468524,96017.0,96004.0,0.011]
[1735227237621,1.18839208,96017.0,96003.0,0.00856205]
[1735227238420,1.18839208,96017.0,96004.0,0.05213]
[1735227239219,1.18839208,96017.0,96004.0,0.05713]
[1735227239717,1.18839208,96017.0,96004.0,0.05613]
[1735227239920,1.18839208,96017.0,96004.0,0.06213]
[1735227240319,1.18839208,96017.0,96004.0,0.05813]
[1735227240520,1.18839208,96017.0,96004.0,0.06213]
[1735227240714,1.18839208,96017.0,96004.0,0.01]
[1735227242025,1.18839208,96017.0,96004.0,0.008]
[1735227242215,1.18839208,96017.0,96004.0,0.009]
[1735227242721,1.18839208,96017.0,96003.0,0.00156205]
[1735227242913,1.18839208,96017.0,96004.0,0.007]
[1735227243824,1.18839208,96017.0,96004.0,0.003]
[1735227244123,1.18939208,96017.0,96004.0,0.003]
[1735227245219,0.001,96017.0,96003.0,0.00756205]
[1735227245413,0.3035,96036.0,96012.0,0.052126]
[1735227245614,0.3035,96036.0,96010.0,0.16351596]
[1735227245819,0.60576,96047.0,96031.0,0.052115]
[1735227246018,0.60576,96047.0,96020.0,0.16351596]
[1735227246019,0.15333152,96043.0,96028.0,0.052117]
[1735227246463,1.03271676,96043.0,96028.0,0.052117]
[1735227247117,1.03771676,96043.0,96028.0,0.052117]
[1735227247314,1.03771676,96043.0,96010.0,0.16351596]
[1735227247518,1.03771676,96043.0,96005.0,0.374129]
[1735227247519,0.88438524,96043.0,96020.0,0.16351596]
[1735227247910,0.005,96043.0,96030.0,0.16351596]
[1735227248118,0.2975,96066.0,96046.0,0.052107]
[1735227248436,0.88094697,96062.0,96049.0,0.052106]
[1735227249125,0.88094697,96062.0,96040.0,0.16351596]
[1735227249431,0.004,96062.0,96061.0,0.052099]
[1735227249617,0.15333152,96076.0,96050.0,0.16351596]
[1735227249820,0.15333152,96076.0,96063.0,0.052098]
[1735227250013,0.15333152,96076.0,96049.0,0.001]
[1735227250014,0.15333152,96076.0,96055.0,0.052102]
[1735227250219,0.004,96062.0,96041.0,0.05367139]
[1735227250528,0.011,96062.0,96041.0,0.00156139]
[1735227250721,0.011,96062.0,96053.0,0.052103]
[1735227251126,0.83487806,96062.0,96045.0,0.24701346]
[1735227251422,0.16351596,96060.0,96045.0,0.24701346]
[1735227252025,1.28739402,96060.0,96041.0,0.05472238]
[1735227252226,1.28739402,96060.0,96028.0,0.24707129]
[1735227252227,0.16351596,96051.0,96028.0,0.24707129]
[1735227252423,0.16351596,96040.0,96028.0,0.30045767]
[1735227252613,0.82387806,96040.0,96028.0,0.30045767]
[1735227253617,0.82387806,96040.0,96028.0,0.05338638]
[1735227253811,0.82387806,96040.0,96028.0,0.008]
[1735227254921,0.15333152,96054.0,96031.0,0.052115]
[1735227255226,0.97720958,96054.0,96028.0,0.007]
[1735227255416,0.16351596,96050.0,96028.0,0.007]
[1735227255619,0.16351596,96050.0,96028.0,0.005]
[1735227255820,0.98739402,96050.0,96028.0,0.013]
[1735227256327,0.98739402,96050.0,96028.0,0.008]
[1735227256524,0.82387806,96050.0,96029.0,0.04038758]
[1735227256826,0.82387806,96050.0,96030.0,0.04038758]
[1735227257014,0.82387806,96050.0,96031.0,0.04038758]
[1735227257219,0.82387806,96050.0,96039.0,0.052111]
[1735227257421,0.82387806,96050.0,96040.0,0.05211]
[1735227257725,0.29796,96061.0,96041.0,0.04036715]
[1735227257912,1.12107806,96061.0,96040.0,0.05211]
[1735227258116,1.12107806,96061.0,96041.0,0.04035907]
[1735227258329,1.12107806,96061.0,96040.0,0.05211]
[1735227258829,1.12107806,96061.0,96028.0,0.005]
[1735227258830,0.16351596,96050.0,96028.0,0.005]
[1735227259029,1.42107806,96061.0,96029.0,0.04035908]
[1735227259030,0.16351596,96040.0,96029.0,0.04035908]
[1735227259224,0.16351596,96040.0,96028.0,0.005]
[1735227259420,0.98739402,96040.0,96028.0,0.005]
[1735227259620,0.98739402,96040.0,96022.0,0.14506069]
[1735227259926,0.82387806,96040.0,96023.0,0.04036309]
[1735227260128,0.82487806,96040.0,96029.0,0.008]
[1735227260316,0.001,96040.0,96029.0,0.008]
[1735227260518,0.001,96040.0,96032.0,0.052115]
[1735227262023,0.3002,96048.0,96032.0,0.056115]
[1735227262323,1.12407806,96048.0,96032.0,0.056115]
[1735227263117,0.82387806,96048.0,96032.0,0.004]
[1735227263441,0.42148052,96061.0,96032.0,0.004]
[1735227263617,1.24535858,96061.0,96043.0,0.052109]
[1735227264129,0.16351596,96060.0,96035.0,0.052113]
[1735227264314,0.16351596,96060.0,96033.0,0.3056]
[1735227264533,0.98739402,96060.0,96034.0,0.04033583]
[1735227265027,0.98739402,96060.0,96043.0,0.002]
[1735227265816,0.98739402,96060.0,96039.0,0.052111]
[1735227266929,0.98739402,96060.0,96039.0,0.054111]
[1735227267720,0.98739402,96060.0,96043.0,0.052109]
[1735227267924,0.82387806,96060.0,96043.0,0.052109]
[1735227268426,0.82387806,96060.0,96043.0,0.054109]
[1735227268929,0.82387806,96060.0,96043.0,0.002]
[1735227269122,0.82387806,96060.0,96043.0,0.003]
[1735227269785,1.28739402,96060.0,96043.0,0.003]
[1735227269935,8.204e-05,96050.0,96036.0,0.18526398]
[1735227270123,0.16351596,96046.0,96036.0,0.18526398]
[1735227270649,0.98739402,96046.0,96036.0,0.18526398]
[1735227270949,0.98739402,96046.0,96043.0,0.002]
[1735227271619,0.98739402,96046.0,96030.0,0.05268792]
[1735227271929,1.28739402,96046.0,96036.0,0.003]
[1735227272129,0.92905608,96046.0,95985.0,0.3182]
[1735227272327,0.16351596,96018.0,95993.0,0.052141]
[1735227272532,0.325,96017.0,95993.0,0.052141]
[1735227272722,0.325,96017.0,96008.0,0.05307508]
[1735227272929,0.95405608,96017.0,96005.0,0.30651206]
[1735227273728,0.95405608,96017.0,96005.0,0.35787757]
[1735227274129,0.95405608,96017.0,96008.0,0.005]
[1735227274535,0.95405608,96017.0,96008.0,0.013]
[1735227274723,0.3158,96016.0,96008.0,0.013]
[1735227274926,0.3158,96016.0,96008.0,0.008]
[1735227275125,0.3158,96016.0,96005.0,0.05336551]
[1735227275126,0.94485608,96016.0,96005.0,0.05636551]
[1735227275327,0.3131,96015.0,96005.0,0.05636551]
[1735227275631,0.3131,96015.0,96008.0,0.001]
[1735227275829,0.94215608,96015.0,95988.0,0.0015626]
[1735227276027,0.16351596,96010.0,95988.0,0.0015626]
[1735227276228,0.94215608,96015.0,95988.0,0.0015626]
[1735227276229,0.16351596,96000.0,95988.0,0.0015626]
[1735227276539,0.16351596,96000.0,95988.0,0.05290726]
[1735227276737,0.79257204,96000.0,95988.0,0.05290726]
[1735227277823,0.62905608,96000.0,95988.0,0.05290726]
[1735227278029,0.3131,96015.0,95988.0,0.05590726]
[1735227278233,0.51001901,96015.0,95990.0,0.16351596]
[1735227278543,0.45004052,96017.0,96011.0,0.052131]
[1735227278544,0.12504052,96017.0,96011.0,0.052131]
[1735227278728,0.47451596,96030.0,96011.0,0.052131]
[1735227278729,0.12428052,96013.0,96011.0,0.052131]
[1735227279129,0.12428052,96013.0,95988.0,0.06090726]
[1735227279130,0.037,96004.0,95988.0,0.06090726]
[1735227279329,0.42428052,96013.0,95905.0,0.319]
[1735227279330,0.052143,95991.0,95942.0,0.052169]
[1735227279631,0.16351596,95969.0,95959.0,0.35804076]
[1735227279829,0.3093,95968.0,95959.0,0.0515287]
[1735227280145,0.3093,95968.0,95939.0,0.43577011]
[1735227280327,0.16351596,95949.0,95939.0,0.48837819]
[1735227281034,0.16351596,95950.0,95939.0,0.48837819]
[1735227281232,0.16351596,95950.0,95939.0,0.05417163]
[1735227281433,0.16351596,95950.0,95939.0,0.05917163]
[1735227281840,0.16351596,95950.0,95939.0,0.06817163]
[1735227282340,0.67353497,95950.0,95939.0,0.06817163]
[1735227282736,0.83705093,95950.0,95939.0,0.06817163]
[1735227283636,0.67353497,95950.0,95939.0,0.06817163]
[1735227283841,0.16351596,95950.0,95939.0,0.06817163]
[1735227288746,0.00156356,95989.0,95940.0,0.46841596]
[1735227289048,0.51158257,95989.0,95965.0,0.052156]
[1735227289545,0.51158257,95989.0,95966.0,0.3218]
[1735227289742,0.51158257,95989.0,95967.0,0.3049]
[1735227289946,0.51101901,95989.0,95967.0,0.3049]
[1735227290848,0.51201901,95989.0,95967.0,0.3109]
[1735227291049,0.51201901,95989.0,95970.0,0.16351596]
[1735227291243,0.3082,95999.0,95971.0,0.3122]
[1735227291455,0.002,95989.0,95979.0,0.16351596]
[1735227291949,0.00156284,96009.0,95985.0,0.052145]
[1735227292155,0.001,95989.0,95985.0,0.052145]
[1735227292348,0.001,95989.0,95987.0,0.052144]
[1735227292542,0.00156284,96009.0,95987.0,0.052144]
[1735227292748,0.001,95989.0,95987.0,0.052144]
[1735227293137,0.00156284,96009.0,95992.0,0.052141]
[1735227293346,0.51158185,96009.0,95992.0,0.052141]
[1735227294247,0.00156284,96009.0,95990.0,0.16351596]
[1735227294447,0.16351596,96040.0,96003.0,0.052136]
[1735227294448,0.0015624,96038.0,96003.0,0.052136]
[1735227295050,0.0015624,96038.0,95992.0,0.007]
[1735227295051,0.16351596,96020.0,95994.0,0.05214]
[1735227295446,0.67353497,96020.0,95994.0,0.05214]
[1735227295946,0.67353497,96020.0,96003.0,0.001]
[1735227296248,0.0015624,96038.0,96004.0,0.052135]
[1735227296447,0.82838141,96038.0,96014.0,0.05213]
[1735227298054,0.82938141,96038.0,96014.0,0.05213]
[1735227298248,0.83238141,96038.0,96014.0,0.05213]
[1735227298449,0.83238141,96038.0,96004.0,0.04481984]
[1735227298450,0.16351596,96030.0,96004.0,0.04481984]
[1735227298642,0.16351596,96020.0,95988.0,0.052144]
[1735227298846,0.052119,96035.0,95988.0,0.052144]
[1735227298847,0.16351596,96010.0,95988.0,0.052144]
[1735227299049,0.3023,96019.0,95988.0,0.052144]
[1735227299247,0.51001901,96019.0,96000.0,0.16351596]
[1735227299455,0.51001901,96019.0,96002.0,0.052136]
[1735227299841,0.51001901,96019.0,95990.0,0.16351596]
[1735227299842,0.51001901,96019.0,96010.0,0.052132]
[1735227300054,0.6129,96037.0,95983.0,0.052147]
[1735227300055,0.6129,96037.0,96003.0,0.052136]
[1735227300354,1.12291901,96037.0,96010.0,0.16351596]
[1735227300550,1.12291901,96037.0,96004.0,0.3106]
[1735227300769,0.16351596,96030.0,96004.0,0.001]
[1735227300943,0.16351596,96020.0,96003.0,0.04488055]
[1735227301150,0.16351596,96010.0,96003.0,0.001]
[1735227301454,0.3206,96009.0,96003.0,0.001]
[1735227301653,0.6354,96009.0,96004.0,0.001]
[1735227301855,1.14541901,96009.0,96004.0,0.002]
[1735227302951,0.3229,96008.0,95972.0,0.00156259]
[1735227303151,0.16351596,96000.0,95972.0,0.05371459]
[1735227303358,0.67253497,96000.0,95974.0,0.052152]
[1735227303562,0.51001901,96000.0,95975.0,0.052151]
[1735227303864,0.50901901,96000.0,95972.0,0.04496741]
[1735227304052,0.67253497,96000.0,95972.0,0.00156259]
[1735227304244,0.67253497,96000.0,95973.0,0.005]
[1735227304446,0.67253497,96000.0,95974.0,0.008]
[1735227304744,0.50901901,96000.0,95974.0,0.008]
[1735227304950,0.50247556,96000.0,95988.0,0.052144]
[1735227305453,0.50247556,96000.0,95980.0,0.21566396]
[1735227305752,0.50247556,96000.0,95981.0,0.052148]
[1735227305953,0.66599152,96000.0,95973.0,0.052152]
[1735227306341,0.66599152,96000.0,95972.0,0.05952951]
[1735227306551,0.16351596,95982.0,95958.0,0.30927726]
[1735227306744,0.16351596,95968.0,95958.0,0.30927726]
[1735227306953,0.16351596,95968.0,95958.0,0.34408519]
[1735227307144,0.96499152,95968.0,95952.0,0.00156328]
[1735227307552,0.66499152,95968.0,95952.0,0.00156328]
[1735227307748,0.66499152,95968.0,95952.0,0.03640931]
[1735227307954,0.66499152,95968.0,95958.0,0.002]
[1735227308142,0.66499152,95968.0,95958.0,0.003]
[1735227308543,0.00013083,95967.0,95958.0,0.003]
[1735227309052,0.50160639,95967.0,95958.0,0.003]
[1735227309651,0.50160639,95967.0,95952.0,0.00356328]
[1735227309652,0.3,95967.0,95952.0,0.00356328]
[1735227309853,0.16351596,95962.0,95921.0,0.05218]
[1735227310046,0.3,95967.0,95911.0,0.052186]
[1735227310047,0.16351596,95940.0,95911.0,0.052186]
[1735227310253,8.901e-05,95939.0,95914.0,0.37098952]
[1735227310457,0.16351596,95930.0,95914.0,0.37098952]
[1735227310655,0.49791228,95930.0,95914.0,0.40541504]
[1735227310851,0.49591228,95930.0,95914.0,0.40541504]
[1735227311656,0.49591228,95930.0,95914.0,0.41441504]
[1735227312167,0.49591228,95930.0,95914.0,0.04342552]
[1735227312855,8.901e-05,95939.0,95920.0,0.16351596]
[1735227313056,0.001,95930.0,95914.0,0.003]
[1735227313359,0.16451596,95930.0,95914.0,0.003]
[1735227313655,0.16451596,95930.0,95914.0,0.03787645]
[1735227313656,0.0001049,95929.0,95914.0,0.03787645]
[1735227313856,0.6830049,95929.0,95914.0,0.003]
[1735227314059,1.50821718,95929.0,95914.0,0.002]
[1735227314246,1.50811228,95929.0,95914.0,0.002]
[1735227315162,8.833e-05,95928.0,95914.0,0.002]
[1735227315552,0.49600061,95928.0,95914.0,0.002]
[1735227315754,0.49600061,95928.0,95914.0,0.059184]
[1735227315969,0.49600061,95928.0,95914.0,0.007]
[1735227316165,0.49600061,95928.0,95907.0,0.052188]
[1735227316349,0.49600061,95928.0,95900.0,0.4641992]
[1735227316350,0.49600061,95928.0,95914.0,0.004]
[1735227316660,8.833e-05,95928.0,95921.0,0.05218]
[1735227316857,0.00108833,95928.0,95921.0,0.05218]
[1735227317056,0.00108833,95928.0,95915.0,0.3664]
[1735227317251,0.49700061,95928.0,95915.0,0.3664]
[1735227317851,0.49700061,95928.0,95921.0,0.005]
[1735227318253,0.331,95927.0,95914.0,0.005]
[1735227318447,0.331,95927.0,95914.0,0.03950472]
[1735227318657,1.12691228,95927.0,95914.0,0.005]
[1735227319054,1.12691228,95927.0,95900.0,0.1]
[1735227319255,0.16351596,95910.0,95900.0,0.1]
[1735227319454,9.917e-05,95909.0,95900.0,0.13425923]
[1735227319657,0.36009917,95909.0,95900.0,0.13425923]
[1735227319856,0.85201145,95909.0,95900.0,0.13425923]
[1735227320052,0.84701145,95909.0,95900.0,0.13425923]
[1735227320448,0.84701145,95909.0,95900.0,0.14325923]
[1735227320853,0.3233,95908.0,95900.0,0.14325923]
[1735227321159,0.3233,95908.0,95894.0,0.0354835]
[1735227321361,0.70857032,95908.0,95879.0,0.052203]
[1735227321567,0.70857032,95908.0,95876.0,0.38658184]
[1735227322049,0.70857032,95908.0,95883.0,0.052201]
[1735227322251,0.00011361,95907.0,95883.0,0.052201]
[1735227322466,0.16351596,95900.0,95876.0,0.38714184]
[1735227322661,0.16351596,95890.0,95876.0,0.03518184]
[1735227322860,0.00011361,95889.0,95874.0,0.0015644]
[1735227323469,0.38538393,95889.0,95874.0,0.0015644]
[1735227324264,0.38527032,95889.0,95874.0,0.0015644]
[1735227324464,0.00011361,95888.0,95874.0,0.0015644]
[1735227324655,0.00011361,95888.0,95874.0,0.03746882]
[1735227324863,0.38538393,95888.0,95874.0,0.0015644]
[1735227325864,0.38627032,95888.0,95874.0,0.0015644]
[1735227326863,0.38627032,95888.0,95846.0,7.75e-05]
[1735227326864,0.052202,95882.0,95846.0,7.75e-05]
[1735227327162,0.16351596,95880.0,95850.0,0.16351596]
[1735227327369,0.38803032,95888.0,95860.0,0.16351596]
[1735227327370,0.00011361,95879.0,95860.0,0.16351596]
[1735227327567,0.00011361,95879.0,95856.0,0.327]
[1735227328269,0.00011361,95879.0,95865.0,0.052211]
[1735227328964,0.38538393,95879.0,95856.0,0.327]
[1735227329170,0.38538393,95879.0,95862.0,0.052212]
[1735227329562,0.38638393,95879.0,95862.0,0.052212]
[1735227329867,0.38638393,95879.0,95856.0,0.327]
[1735227330077,0.38538393,95879.0,95857.0,0.052215]
[1735227330365,0.38538393,95879.0,95855.0,0.00800778]
[1735227330366,0.16351596,95870.0,95855.0,0.00800778]
[1735227330558,0.0001043,95869.0,95855.0,0.00800778]
[1735227331064,0.0001043,95869.0,95846.0,7.75e-05]
[1735227331065,0.38537462,95869.0,95846.0,7.75e-05]
[1735227331262,0.38527032,95869.0,95846.0,7.75e-05]
[1735227331462,0.00010902,95868.0,95846.0,7.75e-05]
[1735227331657,0.00010902,95868.0,95846.0,0.03526991]
[1735227331863,0.38537934,95868.0,95846.0,0.03526991]
[1735227332463,0.16351596,95860.0,95846.0,0.03526991]
[1735227332657,0.00011361,95859.0,95846.0,0.03526991]
[1735227333162,0.38538393,95859.0,95846.0,0.03526991]
[1735227334271,0.052216,95856.0,95816.0,0.6652]
[1735227334471,0.16351596,95850.0,95816.0,0.6652]
[1735227334672,0.16351596,95850.0,95819.0,0.052236]
[1735227334866,0.38527032,95850.0,95822.0,0.052234]
[1735227335069,0.38527032,95850.0,95820.0,0.16351596]
[1735227335373,0.00011501,95849.0,95826.0,0.052232]
[1735227335568,0.00011501,95849.0,95830.0,0.16351596]
[1735227335772,0.00011501,95849.0,95831.0,0.052229]
[1735227336267,0.00011501,95849.0,95820.0,0.16351596]
[1735227336485,0.38538533,95849.0,95823.0,0.052234]
[1735227336671,0.38538533,95849.0,95820.0,0.16351596]
[1735227336863,0.00111501,95849.0,95830.0,0.16351596]
[1735227337174,0.09308689,95880.0,95849.0,0.05222]
[1735227337476,0.47835721,95880.0,95850.0,0.52593496]
[1735227337668,0.64187317,95880.0,95851.0,0.3399]
[1735227337975,7.61e-05,95879.0,95851.0,0.3399]
[1735227338370,7.61e-05,95878.0,95851.0,0.3399]
[1735227338674,7.61e-05,95878.0,95857.0,0.052215]